[Event "Late-Titled-Tuesday-Blitz-March-12-2024"]
[Site "Chess.com"]
[Date "2024.03.12"]
[Round "3"]
[White "Levanzovsky"]
[Black "Cuchulin"]
[Result "1-0"]
[WhiteElo "2386"]
[BlackElo "2034"]
[TimeControl "180+1"]
[EndTime "14:27:12 PDT"]
[Termination "Levanzovsky won on time"]

1. d4 {[%clk 0:03:00.9]} 1... d5 {[%clk 0:02:55.6]} 2. Nc3 {[%clk 0:03:01.3]}
2... Nf6 {[%clk 0:02:54.8]} 3. Bf4 {[%clk 0:03:02.2]} 3... e6 {[%clk 0:02:54.6]}
4. e3 {[%clk 0:03:02.8]} 4... c6 {[%clk 0:02:54.5]} 5. Nf3 {[%clk 0:03:03.5]}
5... g6 {[%clk 0:02:54.8]} 6. Bd3 {[%clk 0:03:02.6]} 6... Bg7 {[%clk 0:02:55.1]}
7. Ne5 {[%clk 0:03:03.2]} 7... O-O {[%clk 0:02:55.2]} 8. h4 {[%clk 0:03:03.9]}
8... h5 {[%clk 0:02:54.5]} 9. Qf3 {[%clk 0:03:03.3]} 9... Nbd7 {[%clk
0:02:54.2]} 10. Qg3 {[%clk 0:03:04]} 10... Nxe5 {[%clk 0:02:54.3]} 11. dxe5
{[%clk 0:02:59]} 11... Ng4 {[%clk 0:02:54.3]} 12. f3 {[%clk 0:02:57.3]} 12...
Nh6 {[%clk 0:02:53.6]} 13. O-O-O {[%clk 0:02:48.5]} 13... Nf5 {[%clk 0:02:49.4]}
14. Bxf5 {[%clk 0:02:46.1]} 14... exf5 {[%clk 0:02:50.3]} 15. e4 {[%clk
0:02:44.7]} 15... fxe4 {[%clk 0:02:47.1]} 16. fxe4 {[%clk 0:02:40.2]} 16... Be6
{[%clk 0:02:46.5]} 17. exd5 {[%clk 0:02:35.8]} 17... cxd5 {[%clk 0:02:46.6]} 18.
Bg5 {[%clk 0:02:34.2]} 18... Qa5 {[%clk 0:02:46]} 19. Bf6 {[%clk 0:02:33.5]}
19... Rac8 {[%clk 0:02:44.4]} 20. Rd4 {[%clk 0:02:24.7]} 20... Rc6 {[%clk
0:02:29.2]} 21. Rhd1 {[%clk 0:02:24.6]} 21... Rfc8 {[%clk 0:02:23.3]} 22. R1d3
{[%clk 0:01:58.9]} 22... b5 {[%clk 0:02:22.2]} 23. a3 {[%clk 0:01:56.3]} 23...
Qb6 {[%clk 0:01:40.4]} 24. Qe1 {[%clk 0:00:56.4]} 24... a5 {[%clk 0:01:39.8]}
25. Rd2 {[%clk 0:00:49.5]} 25... b4 {[%clk 0:01:32.3]} 26. Nxd5 {[%clk 0:00:40]}
26... Bxd5 {[%clk 0:01:30]} 27. Rxd5 {[%clk 0:00:39.8]} 27... bxa3 {[%clk
0:01:25.7]} 28. bxa3 {[%clk 0:00:39.5]} 28... Qb3 {[%clk 0:00:25.2]} 29. Qe4
{[%clk 0:00:25.1]} 29... Qxa3+ {[%clk 0:00:20.6]} 30. Kd1 {[%clk 0:00:25.6]}
30... Qa1+ {[%clk 0:00:16]} 31. Ke2 {[%clk 0:00:26]} 31... Bxf6 {[%clk
0:00:15.8]} 32. Qf4 {[%clk 0:00:13]} 32... Bg7 {[%clk 0:00:04.8]} 33. Rd7 {[%clk
0:00:13.6]} 33... Qa2 {[%clk 0:00:01.1]} 34. Re7 {[%clk 0:00:11.1]} 1-0

[Event "Late-Titled-Tuesday-Blitz-March-12-2024"]
[Site "Chess.com"]
[Date "2024.03.12"]
[Round "3"]
[White "norwaytoadog"]
[Black "Malev212"]
[Result "1-0"]
[WhiteElo "2335"]
[BlackElo "2613"]
[TimeControl "180+1"]
[EndTime "14:27:14 PDT"]
[Termination "norwaytoadog won on time"]

1. e4 {[%clk 0:02:59.7]} 1... g6 {[%clk 0:02:50.3]} 2. d4 {[%clk 0:02:59.5]}
2... Bg7 {[%clk 0:02:49.6]} 3. Nc3 {[%clk 0:03:00]} 3... c5 {[%clk 0:02:48.6]}
4. d5 {[%clk 0:02:58.9]} 4... d6 {[%clk 0:02:47.8]} 5. Bb5+ {[%clk 0:02:58.8]}
5... Nd7 {[%clk 0:02:46.5]} 6. a4 {[%clk 0:02:57.8]} 6... Nf6 {[%clk 0:02:46.3]}
7. Nf3 {[%clk 0:02:53.6]} 7... O-O {[%clk 0:02:46]} 8. O-O {[%clk 0:02:53.5]}
8... Ng4 {[%clk 0:02:38.4]} 9. a5 {[%clk 0:02:47.9]} 9... Rb8 {[%clk 0:02:34.6]}
10. Re1 {[%clk 0:02:34.8]} 10... a6 {[%clk 0:02:32.5]} 11. Bf1 {[%clk
0:02:27.6]} 11... b5 {[%clk 0:02:30.1]} 12. axb6 {[%clk 0:02:26.8]} 12... Nxb6
{[%clk 0:02:27.3]} 13. h3 {[%clk 0:01:56.7]} 13... Ne5 {[%clk 0:02:23.6]} 14.
Nxe5 {[%clk 0:01:56.1]} 14... Bxe5 {[%clk 0:02:24.1]} 15. Bh6 {[%clk 0:01:48.9]}
15... Re8 {[%clk 0:02:23.2]} 16. Ra3 {[%clk 0:01:27.9]} 16... e6 {[%clk
0:02:19.8]} 17. Qc1 {[%clk 0:01:09.5]} 17... exd5 {[%clk 0:02:16]} 18. exd5
{[%clk 0:00:58]} 18... Bb7 {[%clk 0:02:09.9]} 19. Ne4 {[%clk 0:00:41.3]} 19...
Nxd5 {[%clk 0:01:50.8]} 20. Bc4 {[%clk 0:00:32.2]} 20... Qc7 {[%clk 0:01:18.9]}
21. Rf3 {[%clk 0:00:21.3]} 21... Kh8 {[%clk 0:01:00.4]} 22. Qd2 {[%clk
0:00:18.5]} 22... f5 {[%clk 0:00:29.1]} 23. Ng5 {[%clk 0:00:17.5]} 23... Bg7
{[%clk 0:00:10.6]} 24. Bxg7+ {[%clk 0:00:15.2]} 24... Qxg7 {[%clk 0:00:09.7]}
25. Rxe8+ {[%clk 0:00:14.5]} 25... Rxe8 {[%clk 0:00:09.4]} 26. Bxd5 {[%clk
0:00:14.7]} 26... Bxd5 {[%clk 0:00:07.5]} 27. Qxd5 {[%clk 0:00:14.7]} 27... Re1+
{[%clk 0:00:07.1]} 28. Kh2 {[%clk 0:00:15.1]} 28... Qe5+ {[%clk 0:00:07.1]} 29.
Qxe5+ {[%clk 0:00:14.9]} 29... dxe5 {[%clk 0:00:08]} 30. Rd3 {[%clk 0:00:15]}
30... Re2 {[%clk 0:00:05.6]} 31. Rd7 {[%clk 0:00:14.2]} 31... Rxc2 {[%clk
0:00:02.5]} 32. Nf7+ {[%clk 0:00:12.4]} 32... Kg8 {[%clk 0:00:01.9]} 33. Nxe5
{[%clk 0:00:11.2]} 33... Rxb2 {[%clk 0:00:02]} 34. Kg3 {[%clk 0:00:10.9]} 1-0

[Event "Late-Titled-Tuesday-Blitz-March-12-2024"]
[Site "Chess.com"]
[Date "2024.03.12"]
[Round "3"]
[White "zajka-molotok"]
[Black "Bauman_Guy"]
[Result "0-1"]
[WhiteElo "2566"]
[BlackElo "2919"]
[TimeControl "180+1"]
[EndTime "14:27:15 PDT"]
[Termination "Bauman_Guy won on time"]

1. e4 {[%clk 0:03:00.9]} 1... c5 {[%clk 0:02:59.2]} 2. Nf3 {[%clk 0:03:00.3]}
2... d6 {[%clk 0:02:59.4]} 3. Bb5+ {[%clk 0:02:59.4]} 3... Nd7 {[%clk
0:02:59.2]} 4. a4 {[%clk 0:02:59.1]} 4... a6 {[%clk 0:02:59.5]} 5. Be2 {[%clk
0:02:58.5]} 5... g6 {[%clk 0:02:59.9]} 6. O-O {[%clk 0:02:56.9]} 6... Bg7 {[%clk
0:03:00.5]} 7. Re1 {[%clk 0:02:53.9]} 7... Ngf6 {[%clk 0:03:00.6]} 8. a5 {[%clk
0:02:46.6]} 8... Nxe4 {[%clk 0:02:52.5]} 9. Bc4 {[%clk 0:02:41.4]} 9... Nef6
{[%clk 0:02:51.2]} 10. Ng5 {[%clk 0:02:39.3]} 10... O-O {[%clk 0:02:46.6]} 11.
Bxf7+ {[%clk 0:02:35.5]} 11... Rxf7 {[%clk 0:02:46.5]} 12. Ne6 {[%clk
0:02:35.8]} 12... Qe8 {[%clk 0:02:47]} 13. Nc7 {[%clk 0:02:35.7]} 13... Qd8
{[%clk 0:02:47.3]} 14. Nxa8 {[%clk 0:02:30.3]} 14... h5 {[%clk 0:02:11.2]} 15.
d3 {[%clk 0:02:27.2]} 15... Ng4 {[%clk 0:02:10.2]} 16. Re2 {[%clk 0:02:11.9]}
16... Qf8 {[%clk 0:02:04.9]} 17. Qe1 {[%clk 0:01:58]} 17... Bd4 {[%clk
0:01:48.6]} 18. Be3 {[%clk 0:01:52.1]} 18... Nxe3 {[%clk 0:01:41.5]} 19. fxe3
{[%clk 0:01:50.5]} 19... Bxb2 {[%clk 0:01:42.2]} 20. Ra2 {[%clk 0:01:50.5]}
20... Bg7 {[%clk 0:01:38.9]} 21. Nc7 {[%clk 0:01:38.7]} 21... Ne5 {[%clk
0:01:38.5]} 22. Nd2 {[%clk 0:01:35.4]} 22... Qd8 {[%clk 0:01:16.1]} 23. Nd5
{[%clk 0:01:33]} 23... Be6 {[%clk 0:01:11.6]} 24. e4 {[%clk 0:01:31.5]} 24...
Ng4 {[%clk 0:01:06.2]} 25. Nf3 {[%clk 0:01:24.4]} 25... Qf8 {[%clk 0:01:03.7]}
26. Qg3 {[%clk 0:00:48.1]} 26... Bd4+ {[%clk 0:01:00.2]} 27. Kh1 {[%clk
0:00:44.6]} 27... Ne5 {[%clk 0:00:48.9]} 28. c3 {[%clk 0:00:20.8]} 28... h4
{[%clk 0:00:29.8]} 29. Qg5 {[%clk 0:00:17.9]} 29... Bxd5 {[%clk 0:00:19.5]} 30.
cxd4 {[%clk 0:00:17.2]} 30... Nxf3 {[%clk 0:00:12.6]} 31. gxf3 {[%clk
0:00:14.9]} 31... Bxa2 {[%clk 0:00:11.8]} 32. Rxa2 {[%clk 0:00:12.5]} 32... Rxf3
{[%clk 0:00:11]} 33. Qxg6+ {[%clk 0:00:12.4]} 33... Qg7 {[%clk 0:00:11]} 34.
Qe8+ {[%clk 0:00:08.9]} 34... Rf8 {[%clk 0:00:11]} 0-1

[Event "Late-Titled-Tuesday-Blitz-March-12-2024"]
[Site "Chess.com"]
[Date "2024.03.12"]
[Round "3"]
[White "GaiozNigalidze"]
[Black "only_strong_moves"]
[Result "0-1"]
[WhiteElo "2705"]
[BlackElo "2544"]
[TimeControl "180+1"]
[EndTime "14:27:17 PDT"]
[Termination "only_strong_moves won by resignation"]

1. e4 {[%clk 0:03:00.9]} 1... e5 {[%clk 0:02:58]} 2. Nf3 {[%clk 0:03:01.2]} 2...
Nc6 {[%clk 0:02:58.7]} 3. Bb5 {[%clk 0:03:01.3]} 3... a6 {[%clk 0:02:58.9]} 4.
Ba4 {[%clk 0:03:01.5]} 4... Nge7 {[%clk 0:02:59.5]} 5. d4 {[%clk 0:02:59.4]}
5... exd4 {[%clk 0:02:58.7]} 6. Bxc6 {[%clk 0:02:58.4]} 6... dxc6 {[%clk
0:02:56.4]} 7. Qxd4 {[%clk 0:02:57.8]} 7... Qxd4 {[%clk 0:02:56.2]} 8. Nxd4
{[%clk 0:02:57.7]} 8... Ng6 {[%clk 0:02:56.2]} 9. O-O {[%clk 0:02:56.5]} 9...
Bd7 {[%clk 0:02:54.5]} 10. Nc3 {[%clk 0:02:53.8]} 10... O-O-O {[%clk 0:02:54.5]}
11. Bg5 {[%clk 0:02:45.2]} 11... f6 {[%clk 0:02:54.2]} 12. Be3 {[%clk
0:02:44.7]} 12... Ne5 {[%clk 0:02:54.4]} 13. Bf4 {[%clk 0:02:36.8]} 13... Bd6
{[%clk 0:02:41.3]} 14. Bg3 {[%clk 0:02:34.5]} 14... Rhe8 {[%clk 0:02:39.8]} 15.
Rad1 {[%clk 0:02:30.1]} 15... Bb4 {[%clk 0:02:27.3]} 16. Nce2 {[%clk 0:02:22.6]}
16... Nc4 {[%clk 0:02:18.3]} 17. b3 {[%clk 0:02:21.8]} 17... Nd2 {[%clk
0:02:16.6]} 18. a3 {[%clk 0:01:57.5]} 18... Nxf1 {[%clk 0:02:07.2]} 19. axb4
{[%clk 0:01:57.7]} 19... Nxg3 {[%clk 0:02:06.7]} 20. Nxg3 {[%clk 0:01:58.6]}
20... Be6 {[%clk 0:01:58.3]} 21. Nge2 {[%clk 0:01:48]} 21... a5 {[%clk
0:01:57.4]} 22. Ra1 {[%clk 0:01:31.1]} 22... axb4 {[%clk 0:01:49.7]} 23. f3
{[%clk 0:01:29.5]} 23... c5 {[%clk 0:01:47.2]} 24. Nxe6 {[%clk 0:01:20.8]} 24...
Rxe6 {[%clk 0:01:48.1]} 25. Kf2 {[%clk 0:01:21.1]} 25... Ra6 {[%clk 0:01:46.1]}
26. Rc1 {[%clk 0:01:20.4]} 26... b5 {[%clk 0:01:40.3]} 27. Ke3 {[%clk
0:01:19.8]} 27... Ra3 {[%clk 0:01:39.1]} 28. Rb1 {[%clk 0:01:17.8]} 28... c4
{[%clk 0:01:38.5]} 29. Nd4 {[%clk 0:01:18.1]} 29... cxb3 {[%clk 0:01:01.1]} 30.
cxb3 {[%clk 0:01:16.8]} 30... Ra2 {[%clk 0:01:01.5]} 31. Nxb5 {[%clk 0:01:16.1]}
31... Rxg2 {[%clk 0:00:59.8]} 32. Rc1 {[%clk 0:01:14.7]} 32... Rd7 {[%clk
0:01:00.2]} 33. Rc4 {[%clk 0:01:13.3]} 33... Rxh2 {[%clk 0:01:00]} 34. Rxb4
{[%clk 0:01:12.6]} 34... c6 {[%clk 0:00:55.3]} 35. Rc4 {[%clk 0:01:00.7]} 35...
Kb7 {[%clk 0:00:49.4]} 36. Nd4 {[%clk 0:00:56.5]} 36... Rb2 {[%clk 0:00:45]} 37.
Kf4 {[%clk 0:00:52.8]} 37... Rd6 {[%clk 0:00:29.1]} 38. Rb4+ {[%clk 0:00:32.4]}
38... Kc7 {[%clk 0:00:26.8]} 39. Rc4 {[%clk 0:00:32.6]} 39... Kd7 {[%clk
0:00:26.9]} 40. Nf5 {[%clk 0:00:26.4]} 40... g5+ {[%clk 0:00:27.1]} 41. Kg4
{[%clk 0:00:24.5]} 41... Rd1 {[%clk 0:00:28]} 42. Ne3 {[%clk 0:00:21.1]} 42...
Rg1+ {[%clk 0:00:26.9]} 43. Kf5 {[%clk 0:00:21.5]} 43... Rxb3 {[%clk 0:00:24.9]}
44. Rd4+ {[%clk 0:00:10.4]} 44... Ke7 {[%clk 0:00:25.1]} 0-1

[Event "Late-Titled-Tuesday-Blitz-March-12-2024"]
[Site "Chess.com"]
[Date "2024.03.12"]
[Round "3"]
[White "Sajkochess"]
[Black "SlavenPastar"]
[Result "1/2-1/2"]
[WhiteElo "2334"]
[BlackElo "2580"]
[TimeControl "180+1"]
[EndTime "14:27:19 PDT"]
[Termination "Game drawn by repetition"]

1. e4 {[%clk 0:03:00.9]} 1... b6 {[%clk 0:03:00.9]} 2. d4 {[%clk 0:03:00.8]}
2... Bb7 {[%clk 0:03:01.4]} 3. Bd3 {[%clk 0:03:01.1]} 3... Nf6 {[%clk
0:03:01.9]} 4. Nd2 {[%clk 0:03:00.7]} 4... e6 {[%clk 0:03:02.1]} 5. Ngf3 {[%clk
0:03:00.1]} 5... d5 {[%clk 0:03:02.6]} 6. Qe2 {[%clk 0:02:55.7]} 6... dxe4
{[%clk 0:03:02.1]} 7. Nxe4 {[%clk 0:02:56]} 7... Nbd7 {[%clk 0:03:02.7]} 8. O-O
{[%clk 0:02:50.9]} 8... Be7 {[%clk 0:03:02.8]} 9. c4 {[%clk 0:02:38.5]} 9... O-O
{[%clk 0:03:00.1]} 10. Bf4 {[%clk 0:02:35]} 10... Nxe4 {[%clk 0:02:46.1]} 11.
Bxe4 {[%clk 0:02:35.1]} 11... Bxe4 {[%clk 0:02:46.4]} 12. Qxe4 {[%clk 0:02:36]}
12... Nf6 {[%clk 0:02:46.9]} 13. Qc6 {[%clk 0:02:29.4]} 13... Rc8 {[%clk
0:02:46.3]} 14. Rad1 {[%clk 0:02:19.9]} 14... Qe8 {[%clk 0:02:38.6]} 15. Ne5
{[%clk 0:02:12]} 15... Bd6 {[%clk 0:02:32.3]} 16. Qf3 {[%clk 0:01:54.4]} 16...
Qa4 {[%clk 0:02:11.2]} 17. a3 {[%clk 0:01:31.4]} 17... a5 {[%clk 0:01:56.2]} 18.
Bg3 {[%clk 0:01:14.6]} 18... Qc2 {[%clk 0:01:31.9]} 19. b3 {[%clk 0:00:55.8]}
19... Bxa3 {[%clk 0:01:03.8]} 20. Bh4 {[%clk 0:00:53]} 20... Qe4 {[%clk
0:00:50.3]} 21. Bxf6 {[%clk 0:00:42.6]} 21... Qxf3 {[%clk 0:00:49.9]} 22. gxf3
{[%clk 0:00:38.5]} 22... gxf6 {[%clk 0:00:48.3]} 23. Nd7 {[%clk 0:00:39]} 23...
Rfd8 {[%clk 0:00:48.4]} 24. Nxf6+ {[%clk 0:00:39.3]} 24... Kg7 {[%clk 0:00:47]}
25. Ne4 {[%clk 0:00:39.5]} 25... Be7 {[%clk 0:00:39]} 26. Kh1 {[%clk 0:00:38.2]}
26... f5 {[%clk 0:00:37.4]} 27. Rg1+ {[%clk 0:00:38.4]} 27... Kf7 {[%clk
0:00:30.6]} 28. Ng5+ {[%clk 0:00:36]} 28... Bxg5 {[%clk 0:00:30.8]} 29. Rxg5
{[%clk 0:00:36.9]} 29... h6 {[%clk 0:00:22.8]} 30. Rgg1 {[%clk 0:00:32.6]} 30...
Rd7 {[%clk 0:00:20.6]} 31. d5 {[%clk 0:00:24.9]} 31... exd5 {[%clk 0:00:20.4]}
32. cxd5 {[%clk 0:00:25.8]} 32... Rcd8 {[%clk 0:00:18.5]} 33. Rc1 {[%clk
0:00:25.2]} 33... Rxd5 {[%clk 0:00:13]} 34. Rxc7+ {[%clk 0:00:25.2]} 34... R8d7
{[%clk 0:00:13.7]} 35. Rc6 {[%clk 0:00:25.8]} 35... R5d6 {[%clk 0:00:13.1]} 36.
Rgc1 {[%clk 0:00:26.4]} 36... Ke6 {[%clk 0:00:12.6]} 37. Re1+ {[%clk 0:00:26]}
37... Kf6 {[%clk 0:00:12.9]} 38. Rec1 {[%clk 0:00:26.7]} 38... Kg5 {[%clk
0:00:10]} 39. Kg2 {[%clk 0:00:27.1]} 39... Kf6 {[%clk 0:00:06.8]} 40. f4 {[%clk
0:00:27.2]} 40... Ke6 {[%clk 0:00:05.8]} 41. Re1+ {[%clk 0:00:26.5]} 41... Kf6
{[%clk 0:00:06.2]} 42. Rec1 {[%clk 0:00:26.5]} 42... Ke6 {[%clk 0:00:04.5]} 43.
Re1+ {[%clk 0:00:25.9]} 43... Kf6 {[%clk 0:00:04.7]} 44. Rec1 {[%clk 0:00:25.7]}
1/2-1/2

[Event "Late-Titled-Tuesday-Blitz-March-12-2024"]
[Site "Chess.com"]
[Date "2024.03.12"]
[Round "3"]
[White "PapaieDudu"]
[Black "lluiss"]
[Result "1-0"]
[WhiteElo "2447"]
[BlackElo "2236"]
[TimeControl "180+1"]
[EndTime "14:27:19 PDT"]
[Termination "PapaieDudu won by resignation"]

1. Nf3 {[%clk 0:02:57]} 1... d5 {[%clk 0:02:58.3]} 2. d4 {[%clk 0:02:56.9]} 2...
c6 {[%clk 0:02:58.2]} 3. c4 {[%clk 0:02:57.4]} 3... e6 {[%clk 0:02:58.2]} 4. Nc3
{[%clk 0:02:58.1]} 4... f5 {[%clk 0:02:58.4]} 5. Bg5 {[%clk 0:02:58.5]} 5... Nf6
{[%clk 0:02:55.9]} 6. e3 {[%clk 0:02:58.4]} 6... Be7 {[%clk 0:02:55.3]} 7. Be2
{[%clk 0:02:58.5]} 7... O-O {[%clk 0:02:54.9]} 8. O-O {[%clk 0:02:58.4]} 8... h6
{[%clk 0:02:54.6]} 9. Bf4 {[%clk 0:02:58.4]} 9... Bd7 {[%clk 0:02:53.3]} 10. Rc1
{[%clk 0:02:59.1]} 10... Be8 {[%clk 0:02:53]} 11. Qb3 {[%clk 0:02:54.6]} 11...
Qb6 {[%clk 0:02:44.8]} 12. Qc2 {[%clk 0:02:54.2]} 12... Bh5 {[%clk 0:02:35.8]}
13. b4 {[%clk 0:02:50.4]} 13... Ne4 {[%clk 0:02:09.7]} 14. c5 {[%clk 0:02:46.2]}
14... Qd8 {[%clk 0:01:47]} 15. b5 {[%clk 0:02:37.2]} 15... Nd7 {[%clk
0:01:45.7]} 16. a4 {[%clk 0:02:35.7]} 16... Qa5 {[%clk 0:01:41.9]} 17. Nxe4
{[%clk 0:02:25.8]} 17... fxe4 {[%clk 0:01:40.8]} 18. Ne5 {[%clk 0:02:26.5]}
18... Nxe5 {[%clk 0:01:34.2]} 19. Bxe5 {[%clk 0:02:22.9]} 19... Bxe2 {[%clk
0:01:33.6]} 20. Qxe2 {[%clk 0:02:23.8]} 20... Qxa4 {[%clk 0:01:31.2]} 21. Qg4
{[%clk 0:02:22.1]} 21... Bf6 {[%clk 0:01:19.4]} 22. Qxe6+ {[%clk 0:02:21.7]}
22... Kh8 {[%clk 0:01:20.1]} 23. Ra1 {[%clk 0:02:18.2]} 23... Qxb5 {[%clk
0:01:11.7]} 24. Rfb1 {[%clk 0:02:18.6]} 24... Qe2 {[%clk 0:01:07.7]} 25. Bg3
{[%clk 0:02:13.5]} 25... Rae8 {[%clk 0:00:41]} 26. Qd7 {[%clk 0:02:13.3]} 26...
Re7 {[%clk 0:00:40.3]} 27. Qf5 {[%clk 0:02:08.7]} 27... Ref7 {[%clk 0:00:38]}
28. Qe6 {[%clk 0:02:03.8]} 28... a6 {[%clk 0:00:32.5]} 29. Rb6 {[%clk
0:01:59.5]} 29... Bd8 {[%clk 0:00:31.8]} 30. Rbb1 {[%clk 0:01:40.8]} 30... Bc7
{[%clk 0:00:29.4]} 31. Qh3 {[%clk 0:01:34.9]} 31... Bxg3 {[%clk 0:00:27.1]} 32.
Qxg3 {[%clk 0:01:35.4]} 32... Rxf2 {[%clk 0:00:12.9]} 33. h4 {[%clk 0:01:35.9]}
33... R2f7 {[%clk 0:00:10.2]} 34. Kh2 {[%clk 0:01:30]} 34... Qh5 {[%clk
0:00:09.9]} 35. Rg1 {[%clk 0:01:19.7]} 35... Kh7 {[%clk 0:00:09.6]} 36. Qh3
{[%clk 0:01:16]} 36... g5 {[%clk 0:00:08.2]} 37. hxg5 {[%clk 0:01:15.2]} 37...
Qxh3+ {[%clk 0:00:07.9]} 38. Kxh3 {[%clk 0:01:15.9]} 38... hxg5 {[%clk 0:00:07]}
39. Kg4 {[%clk 0:01:16.6]} 39... Kg6 {[%clk 0:00:07.2]} 40. Rab1 {[%clk
0:01:15.5]} 40... Rh8 {[%clk 0:00:05.9]} 41. Rh1 {[%clk 0:01:12]} 41... Rxh1
{[%clk 0:00:05.5]} 42. Rxh1 {[%clk 0:01:12.8]} 42... Rg7 {[%clk 0:00:04.5]} 43.
Rf1 {[%clk 0:01:10.7]} 43... Rg8 {[%clk 0:00:03.3]} 44. Rf5 {[%clk 0:01:11.1]}
44... Ra8 {[%clk 0:00:02.7]} 45. Rxg5+ {[%clk 0:01:11.5]} 45... Kf6 {[%clk
0:00:03.1]} 46. Kf4 {[%clk 0:01:11]} 46... a5 {[%clk 0:00:03.2]} 47. Rh5 {[%clk
0:01:07.3]} 47... a4 {[%clk 0:00:03.6]} 48. Rh6+ {[%clk 0:01:07.8]} 48... Kg7
{[%clk 0:00:03.3]} 49. Rh1 {[%clk 0:01:06.7]} 49... a3 {[%clk 0:00:03.1]} 50.
Ra1 {[%clk 0:01:07.3]} 50... a2 {[%clk 0:00:03.3]} 51. Ke5 {[%clk 0:01:07.4]}
51... Kg6 {[%clk 0:00:03.3]} 52. Kd6 {[%clk 0:01:07.6]} 52... Kg5 {[%clk
0:00:03.6]} 53. Kc7 {[%clk 0:01:08.3]} 53... Kg4 {[%clk 0:00:03.6]} 54. Kxb7
{[%clk 0:01:09]} 54... Ra3 {[%clk 0:00:03.7]} 55. Kxc6 {[%clk 0:01:08.7]} 55...
Kg3 {[%clk 0:00:03.9]} 56. Kxd5 {[%clk 0:01:08.9]} 56... Kxg2 {[%clk 0:00:04.5]}
57. Kxe4 {[%clk 0:01:09.6]} 57... Kf2 {[%clk 0:00:04.6]} 58. c6 {[%clk
0:01:10.2]} 58... Rxe3+ {[%clk 0:00:05]} 59. Kd5 {[%clk 0:01:10.1]} 59... Rc3
{[%clk 0:00:05.3]} 60. Rxa2+ {[%clk 0:01:09.9]} 60... Ke3 {[%clk 0:00:05.8]} 61.
Ra7 {[%clk 0:01:10.6]} 61... Rc4 {[%clk 0:00:06.1]} 62. Re7+ {[%clk 0:01:11.3]}
62... Kd3 {[%clk 0:00:05.7]} 63. Re4 {[%clk 0:01:12]} 63... Rxd4+ {[%clk
0:00:06.1]} 64. Rxd4+ {[%clk 0:01:12.2]} 64... Kc3 {[%clk 0:00:07]} 65. Rc4+
{[%clk 0:01:12.8]} 1-0

[Event "Late-Titled-Tuesday-Blitz-March-12-2024"]
[Site "Chess.com"]
[Date "2024.03.12"]
[Round "3"]
[White "Szparu"]
[Black "Rud_Makarian"]
[Result "0-1"]
[WhiteElo "2805"]
[BlackElo "3057"]
[TimeControl "180+1"]
[EndTime "14:27:22 PDT"]
[Termination "Rud_Makarian won by resignation"]

1. d4 {[%clk 0:03:00.9]} 1... Nf6 {[%clk 0:02:59.5]} 2. c4 {[%clk 0:03:01.3]}
2... e6 {[%clk 0:02:59.4]} 3. Nf3 {[%clk 0:03:01.2]} 3... d5 {[%clk 0:03:00]} 4.
g3 {[%clk 0:03:01.5]} 4... Bb4+ {[%clk 0:02:59.7]} 5. Nc3 {[%clk 0:03:00.9]}
5... O-O {[%clk 0:02:56.8]} 6. Bg2 {[%clk 0:03:00]} 6... dxc4 {[%clk 0:02:57.2]}
7. O-O {[%clk 0:02:59.8]} 7... Nc6 {[%clk 0:02:56.9]} 8. a3 {[%clk 0:02:58.7]}
8... Bd6 {[%clk 0:02:54.9]} 9. Bg5 {[%clk 0:02:48.5]} 9... h6 {[%clk 0:02:51.4]}
10. Bxf6 {[%clk 0:02:48.4]} 10... Qxf6 {[%clk 0:02:52]} 11. Ne4 {[%clk
0:02:33.9]} 11... Qe7 {[%clk 0:02:51.4]} 12. Qa4 {[%clk 0:02:30.5]} 12... e5
{[%clk 0:02:33.6]} 13. Nxd6 {[%clk 0:02:30.8]} 13... Qxd6 {[%clk 0:02:18.1]} 14.
dxe5 {[%clk 0:02:30.3]} 14... Nxe5 {[%clk 0:02:18.3]} 15. Nxe5 {[%clk
0:02:30.3]} 15... Qxe5 {[%clk 0:02:18.8]} 16. Qxc4 {[%clk 0:02:30.4]} 16... c6
{[%clk 0:02:18]} 17. b4 {[%clk 0:01:59.1]} 17... Rd8 {[%clk 0:02:13.7]} 18. Rad1
{[%clk 0:01:50.9]} 18... Be6 {[%clk 0:02:12.4]} 19. Qc2 {[%clk 0:01:48.7]} 19...
a5 {[%clk 0:02:08.8]} 20. Rxd8+ {[%clk 0:01:43.3]} 20... Rxd8 {[%clk 0:02:09.7]}
21. Rd1 {[%clk 0:01:43]} 21... Ra8 {[%clk 0:01:52]} 22. e3 {[%clk 0:01:28.8]}
22... axb4 {[%clk 0:01:46]} 23. axb4 {[%clk 0:01:29.7]} 23... g6 {[%clk
0:01:43.3]} 24. Qc5 {[%clk 0:01:25.9]} 24... Qxc5 {[%clk 0:01:38.9]} 25. bxc5
{[%clk 0:01:26]} 25... Ra5 {[%clk 0:01:39.6]} 26. Rc1 {[%clk 0:01:23.3]} 26...
Kg7 {[%clk 0:01:34.1]} 27. Bf3 {[%clk 0:01:01.5]} 27... Kf6 {[%clk 0:01:32.2]}
28. Kg2 {[%clk 0:00:54.9]} 28... Ke5 {[%clk 0:01:25.6]} 29. Rb1 {[%clk 0:00:54]}
29... Rb5 {[%clk 0:01:08.3]} 30. Rc1 {[%clk 0:00:41.7]} 30... Bd5 {[%clk
0:01:07.6]} 31. g4 {[%clk 0:00:27.7]} 31... g5 {[%clk 0:00:59.4]} 32. h4 {[%clk
0:00:26]} 32... gxh4 {[%clk 0:00:45]} 33. Rh1 {[%clk 0:00:08.9]} 33... Rxc5
{[%clk 0:00:38.2]} 34. Rxh4 {[%clk 0:00:09.2]} 34... b5 {[%clk 0:00:30.7]} 35.
Rxh6 {[%clk 0:00:09.1]} 35... b4 {[%clk 0:00:25.7]} 36. e4 {[%clk 0:00:06.8]}
36... Be6 {[%clk 0:00:21]} 37. Rh1 {[%clk 0:00:05.9]} 37... b3 {[%clk
0:00:20.6]} 38. Rb1 {[%clk 0:00:06.4]} 38... Rc3 {[%clk 0:00:14]} 39. Kg3 {[%clk
0:00:06.1]} 39... c5 {[%clk 0:00:14.5]} 40. g5 {[%clk 0:00:05.8]} 40... c4
{[%clk 0:00:14.6]} 0-1